bitfinex/quotes_BTCUSD_20240826
["timestamp","ask_amount","ask_price","bid_price","bid_amount"]
[1724688435948,0.17940026,63541.0,63540.0,0.01837438]
[1724688436310,0.65153526,63541.0,63540.0,0.01837438]
[1724688436520,0.65153526,63541.0,63540.0,0.000825]
[1724688436740,0.33677826,63541.0,63540.0,0.000825]
[1724688437085,0.65153526,63541.0,63540.0,0.000825]
[1724688437553,0.33677826,63541.0,63540.0,0.000825]
[1724688438190,0.02341159,63541.0,63540.0,0.15879572]
[1724688438388,0.02341159,63541.0,63540.0,0.47355772]
[1724688438599,0.017,63541.0,63540.0,0.57685772]
[1724688438800,0.017,63541.0,63540.0,0.97181972]
[1724688439008,0.008,63541.0,63540.0,0.97181972]
[1724688439256,0.15734,63557.0,63553.0,0.264648]
[1724688439461,0.502044,63564.0,63556.0,0.00058972]
[1724688439672,0.31350301,63563.0,63558.0,0.15792372]
[1724688439871,0.157329,63561.0,63558.0,0.00058972]
[1724688440109,0.40346597,63568.0,63564.0,0.00058972]
[1724688440422,0.40346597,63568.0,63567.0,0.00058972]
[1724688440596,0.55964398,63568.0,63567.0,0.15790372]
[1724688440805,0.55964398,63568.0,63567.0,0.00058972]
[1724688441021,0.71695498,63568.0,63567.0,0.00058972]
[1724688441667,0.72195498,63568.0,63567.0,0.00158972]
[1724688442924,0.56464398,63568.0,63567.0,0.00158972]
[1724688443077,0.40846597,63568.0,63567.0,0.47353172]
[1724688443282,0.40846597,63568.0,63567.0,0.78815972]
[1724688443518,0.40846597,63568.0,63567.0,1.20598772]
[1724688443756,0.40846597,63568.0,63567.0,0.97995972]
[1724688443974,0.41246597,63568.0,63567.0,0.97995972]
[1724688444421,0.40746597,63568.0,63567.0,0.97895972]
[1724688444633,0.40746597,63568.0,63567.0,1.29358772]
[1724688444899,0.40746597,63568.0,63567.0,0.97895972]
[1724688445107,0.40346597,63568.0,63567.0,0.97895972]
[1724688445524,0.40446597,63568.0,63567.0,0.98595972]
[1724688445666,0.40446597,63568.0,63567.0,1.30058772]
[1724688446491,0.40446597,63568.0,63567.0,0.98595972]
[1724688446919,0.40446597,63568.0,63567.0,1.30058772]
[1724688447338,0.40546597,63568.0,63567.0,1.30058772]
[1724688448071,0.40546597,63568.0,63567.0,1.30141172]
[1724688449683,0.41175334,63568.0,63567.0,1.30141172]
[1724688451042,0.41175334,63568.0,63567.0,1.61603972]
[1724688451266,0.41175334,63568.0,63567.0,1.30141172]
[1724688451579,0.41185115,63568.0,63567.0,1.30141172]
[1724688457427,0.41185115,63568.0,63567.0,1.21281172]
[1724688462458,0.41185115,63568.0,63567.0,1.52743972]
[1724688462677,0.41185115,63568.0,63567.0,1.68361773]
[1724688462880,0.41185115,63568.0,63567.0,1.86701773]
[1724688463093,0.40546597,63568.0,63567.0,1.86701773]
[1724688463285,0.40546597,63568.0,63567.0,2.18164573]
[1724688463492,0.40546597,63568.0,63567.0,1.89001773]
[1724688463692,0.40446597,63568.0,63567.0,1.89001773]
[1724688464193,0.40446597,63568.0,63567.0,1.88301773]
[1724688464595,0.40446597,63568.0,63567.0,1.89101773]
[1724688464973,0.40546597,63568.0,63567.0,1.88301773]
[1724688465199,0.40646597,63568.0,63567.0,2.20564573]
[1724688465404,0.40646597,63568.0,63567.0,1.89101773]
[1724688467156,0.40646597,63568.0,63567.0,2.20564573]
[1724688469192,0.34613116,63568.0,63567.0,2.20564573]
[1724688469401,0.21588884,63568.0,63567.0,2.20564573]
[1724688469917,0.00090751,63571.0,63570.0,1.73196072]
[1724688470144,0.00090751,63571.0,63570.0,2.47898964]
[1724688470352,0.00090751,63571.0,63570.0,2.79360264]
[1724688471234,0.00290751,63571.0,63570.0,2.81460264]
[1724688471678,0.00190751,63571.0,63570.0,2.80060264]
[1724688471895,0.00290751,63571.0,63570.0,2.81460264]
[1724688472136,0.00090751,63591.0,63590.0,0.00058972]
[1724688472349,0.00090751,63591.0,63590.0,1.09883391]
[1724688472578,0.00832915,63591.0,63590.0,2.04237591]
[1724688472850,0.00090751,63591.0,63590.0,2.47988991]
[1724688473928,0.00090751,63591.0,63590.0,2.48188991]
[1724688474156,0.00090751,63591.0,63590.0,2.52125323]
[1724688474364,0.00090751,63591.0,63590.0,2.83576723]
[1724688474578,0.00090751,63591.0,63590.0,2.84976723]
[1724688475002,0.00090751,63605.0,63603.0,1.87756563]
[1724688475232,0.00090751,63605.0,63603.0,2.13374364]
[1724688476588,0.00090751,63605.0,63603.0,1.51561472]
[1724688476833,0.08540751,63604.0,63603.0,0.80071472]
[1724688477049,0.08540751,63604.0,63603.0,0.48626472]
[1724688477254,0.19030751,63604.0,63603.0,0.48626472]
[1724688477464,0.19789561,63604.0,63603.0,0.485675]
[1724688477670,0.19789561,63604.0,63603.0,0.48626472]
[1724688477906,0.19789561,63604.0,63603.0,0.47226472]
[1724688478109,0.19789561,63604.0,63603.0,0.32303972]
[1724688478317,0.19789561,63604.0,63603.0,0.48026472]
[1724688478521,0.19789561,63604.0,63603.0,0.47226472]
[1724688478731,0.19789561,63604.0,63603.0,0.47626472]
[1724688478942,0.19789561,63604.0,63603.0,0.79071472]
[1724688479153,0.19889561,63604.0,63603.0,0.80471472]
[1724688479362,0.19130751,63604.0,63603.0,0.80471472]
[1724688479552,0.19788578,63604.0,63603.0,0.79071472]
[1724688479888,0.19030751,63604.0,63603.0,0.79071472]
[1724688480092,0.19030751,63604.0,63603.0,0.47626472]
[1724688480293,0.19030751,63604.0,63603.0,0.48226472]
[1724688480525,0.19788578,63604.0,63603.0,0.48226472]
[1724688480927,0.19788578,63604.0,63603.0,0.16781472]
[1724688481517,0.19788578,63604.0,63603.0,0.48226472]
[1724688482333,0.19788578,63604.0,63603.0,0.79671472]
[1724688483115,0.19788578,63604.0,63603.0,0.48226472]
[1724688483356,0.19030751,63604.0,63603.0,0.79671472]
[1724688483521,0.19790761,63604.0,63603.0,0.79671472]
[1724688484099,0.09300761,63604.0,63603.0,0.79671472]
[1724688484315,0.09300761,63604.0,63603.0,1.11116472]
[1724688484522,0.00090751,63604.0,63603.0,1.11116472]
[1724688492707,0.00090751,63604.0,63603.0,0.79671472]
[1724688492910,0.27262951,63604.0,63603.0,0.01058972]
[1724688493139,0.20260751,63604.0,63603.0,0.01058972]
[1724688493358,0.68176072,63604.0,63603.0,0.01058972]
[1724688493562,0.21009372,63604.0,63603.0,0.48226472]
[1724688493761,0.21009372,63604.0,63603.0,0.01058972]
[1724688494122,0.21009372,63604.0,63603.0,0.48226472]
[1724688495003,0.21009372,63604.0,63603.0,0.16781472]
[1724688496213,0.36731572,63604.0,63603.0,0.01058972]
[1724688496677,0.68176072,63604.0,63603.0,0.01058972]
[1724688497907,0.68176072,63604.0,63603.0,0.01]
[1724688498062,0.36731572,63604.0,63603.0,0.01058972]
[1724688498384,0.36731572,63604.0,63603.0,0.16781472]
[1724688498385,0.21009372,63604.0,63603.0,0.16781472]
[1724688498583,0.21009372,63604.0,63603.0,0.01058972]
[1724688499127,0.36731572,63604.0,63603.0,0.01058972]
[1724688499549,0.21009372,63604.0,63603.0,0.01058972]
[1724688500846,0.00839372,63604.0,63603.0,0.16781472]
[1724688501254,0.00839372,63604.0,63603.0,0.79671472]
[1724688501455,0.00839372,63604.0,63603.0,1.21726472]
[1724688501456,0.00090751,63604.0,63603.0,1.21726472]
[1724688502852,0.00090751,63604.0,63603.0,1.22583995]
[1724688505664,0.00090751,63604.0,63603.0,1.54028995]
[1724688506082,0.00090751,63604.0,63603.0,1.62368995]
[1724688506497,0.00090751,63604.0,63603.0,2.09531796]
[1724688506698,0.00090751,63604.0,63603.0,2.08931796]
[1724688506901,0.00090751,63604.0,63603.0,2.21231796]
[1724688507125,0.00090751,63604.0,63603.0,2.20831796]
[1724688507339,0.00090751,63604.0,63603.0,2.22131796]
[1724688508308,0.00090751,63604.0,63603.0,2.22631796]
[1724688508746,0.00090751,63604.0,63603.0,2.20831796]
[1724688509134,0.00090751,63604.0,63603.0,2.22231796]
[1724688509388,0.00090751,63604.0,63603.0,2.55076796]
[1724688509517,0.00090751,63605.0,63604.0,1.93093672]
[1724688509717,0.00090751,63605.0,63604.0,2.52455973]
[1724688509920,0.00090751,63605.0,63604.0,2.54384109]
[1724688510707,0.00090751,63610.0,63609.0,1.93079972]
[1724688510884,0.00090751,63610.0,63609.0,2.48392864]
[1724688511298,0.000825,63615.0,63614.0,1.84016772]
[1724688511499,0.000825,63615.0,63614.0,2.20984573]
[1724688513358,0.000825,63615.0,63614.0,2.23784573]
[1724688513560,0.000825,63620.0,63619.0,1.73062972]
[1724688513765,0.000825,63620.0,63619.0,2.18670773]
[1724688513971,0.000825,63620.0,63619.0,2.20970773]
[1724688514846,0.000825,63620.0,63619.0,2.22370773]
[1724688515858,0.000825,63620.0,63619.0,2.23770773]
[1724688516899,0.000825,63620.0,63619.0,1.22888772]
[1724688517117,0.000825,63620.0,63619.0,0.81451672]
[1724688517118,0.113025,63620.0,63619.0,0.81451672]
[1724688517325,0.113025,63620.0,63619.0,0.50014572]
[1724688517528,0.202025,63620.0,63619.0,0.50014572]
[1724688517714,0.20973325,63620.0,63619.0,0.81451672]
[1724688518112,0.202025,63620.0,63619.0,0.80051672]
[1724688518520,0.202025,63620.0,63619.0,0.80551672]
[1724688518728,0.202025,63620.0,63619.0,0.79151672]
[1724688518964,0.202025,63620.0,63619.0,0.00058972]
[1724688519426,0.202025,63620.0,63619.0,0.16277472]
[1724688519427,0.20970394,63620.0,63619.0,0.16277472]
[1724688519683,0.20970394,63620.0,63619.0,0.16677472]
[1724688519926,0.20970394,63620.0,63619.0,0.16277472]
[1724688520159,0.20970394,63620.0,63619.0,0.15777472]
[1724688520632,0.20970394,63620.0,63619.0,0.78651672]
[1724688520871,0.00850394,63620.0,63619.0,0.78651672]
[1724688521103,0.000825,63620.0,63619.0,1.10088772]
[1724688521573,0.000825,63620.0,63619.0,1.41525872]
[1724688521823,0.000825,63620.0,63619.0,1.53750116]
[1724688522072,0.003825,63620.0,63619.0,1.22313016]
[1724688522573,0.003825,63620.0,63619.0,1.38330817]
[1724688522574,0.000825,63620.0,63619.0,1.38330817]
[1724688522827,0.000825,63620.0,63619.0,1.38830817]
[1724688524145,0.000825,63620.0,63619.0,1.10988772]
[1724688525407,0.000825,63620.0,63619.0,1.26606573]
[1724688525613,0.000825,63620.0,63619.0,1.37036573]
[1724688525820,0.000825,63620.0,63619.0,1.68573673]
[1724688526036,0.000825,63620.0,63619.0,1.76843673]
[1724688526236,0.000825,63620.0,63619.0,1.76343673]
[1724688526447,0.00907501,63623.0,63622.0,0.4287738]
[1724688526560,0.00907501,63623.0,63622.0,0.58495181]
[1724688526764,0.00907501,63623.0,63622.0,1.52801981]
[1724688526964,0.00907501,63623.0,63622.0,1.84237581]
[1724688527171,0.00907501,63623.0,63622.0,1.68755292]
[1724688527590,0.00907501,63623.0,63622.0,1.84473092]
[1724688527790,0.00907501,63623.0,63622.0,1.76678031]
[1724688528039,0.00907501,63623.0,63622.0,1.34009687]
[1724688528835,0.00907501,63623.0,63622.0,1.35409687]
[1724688529844,0.00907501,63623.0,63622.0,1.36809687]
[1724688533504,0.00907501,63623.0,63622.0,1.37665276]
[1724688534382,0.00907501,63623.0,63622.0,2.04658677]
[1724688534718,0.00907501,63623.0,63622.0,2.14758677]
[1724688535641,0.00907501,63623.0,63622.0,2.13358677]
[1724688535844,0.00907501,63623.0,63622.0,2.11958677]
[1724688536072,0.00907501,63623.0,63622.0,2.13358677]
[1724688537188,0.00907501,63623.0,63622.0,2.14758677]
[1724688537386,0.00907501,63623.0,63622.0,2.44794277]
[1724688538513,0.00907501,63626.0,63622.0,2.74829877]
[1724688538739,0.00907501,63626.0,63625.0,1.929275]
[1724688538948,0.00907501,63626.0,63625.0,2.49979401]
[1724688539158,0.00907501,63626.0,63625.0,2.52279401]
[1724688540194,0.00907501,63626.0,63625.0,2.53679401]
[1724688540603,0.0863,63642.0,63631.0,1.414404]
[1724688540810,0.0871,63646.0,63631.0,2.05393292]
[1724688541000,0.0871,63646.0,63631.0,2.14733292]
[1724688541200,0.0871,63646.0,63631.0,2.46164492]
[1724688542345,0.0871,63646.0,63631.0,2.47564492]
[1724688542720,0.0871,63646.0,63631.0,2.46164492]
[1724688542934,0.0871,63646.0,63631.0,2.48964492]
[1724688543664,0.1108,63639.0,63631.0,2.28784492]
[1724688543916,0.0935,63633.0,63631.0,1.13681339]
[1724688544141,0.1108,63638.0,63631.0,1.442404]
[1724688544355,0.1108,63638.0,63631.0,1.560904]
[1724688544976,0.1108,63638.0,63631.0,1.546904]
[1724688545272,0.0935,63640.0,63631.0,1.532904]
[1724688545501,0.0935,63640.0,63631.0,1.639904]
[1724688545700,0.0935,63640.0,63631.0,1.653904]
[1724688545903,0.0935,63640.0,63631.0,1.632904]
[1724688546305,0.0935,63640.0,63631.0,1.646904]
[1724688546514,0.0935,63640.0,63631.0,1.632904]
[1724688546907,0.0935,63640.0,63631.0,1.660904]
[1724688548006,0.117,63642.0,63631.0,1.750104]
[1724688548216,0.0943,63643.0,63631.0,2.20759401]
[1724688548379,0.0943,63643.0,63631.0,2.24459401]
[1724688549005,0.0943,63643.0,63642.0,1.099899]
[1724688549819,0.2015,63647.0,63646.0,1.099833]
[1724688551508,0.2015,63647.0,63642.0,0.011]
[1724688551509,0.15617801,63647.0,63642.0,0.011]
[1724688551852,0.0102206,63651.0,63645.0,0.157121]
[1724688551853,0.37098767,63646.0,63645.0,0.157121]
[1724688552054,0.1149,63645.0,63644.0,0.157123]
[1724688552223,0.27107801,63645.0,63644.0,0.157123]
[1724688552652,0.12580966,63645.0,63644.0,0.471371]
[1724688553219,0.21480966,63645.0,63644.0,0.785619]
[1724688553638,0.2039,63645.0,63644.0,0.471371]
[1724688554029,0.21480966,63645.0,63644.0,0.471371]
[1724688554525,0.21480966,63645.0,63644.0,0.157123]
[1724688554930,0.21480966,63645.0,63644.0,0.786619]
[1724688555432,0.2039,63645.0,63644.0,0.785619]
[1724688555783,0.21480966,63645.0,63644.0,0.788619]
[1724688556314,0.21480966,63645.0,63644.0,0.790619]
[1724688556315,0.21571606,63645.0,63644.0,0.790619]
[1724688556646,0.2048064,63645.0,63644.0,0.790619]
[1724688557517,0.2048064,63645.0,63644.0,1.104867]
[1724688558231,0.2048064,63645.0,63644.0,0.790619]
[1724688558775,0.2048064,63645.0,63644.0,0.162123]
[1724688559096,0.21571606,63645.0,63644.0,0.476371]
[1724688559512,0.2048064,63645.0,63644.0,0.476371]
[1724688559921,0.21571606,63645.0,63644.0,0.476371]
[1724688560580,0.21571606,63645.0,63644.0,0.790619]
[1724688561008,0.2048064,63645.0,63644.0,1.104867]
[1724688561621,0.0899064,63645.0,63644.0,1.104867]
[1724688561883,0.0009064,63645.0,63644.0,1.104867]
[1724688563115,0.0006172,63645.0,63644.0,1.104867]
[1724688567578,0.0006172,63645.0,63644.0,0.790619]
[1724688567579,0.1184172,63645.0,63644.0,0.790619]
[1724688567788,0.2115172,63645.0,63644.0,0.476371]
[1724688567989,0.22241731,63645.0,63644.0,0.476371]
[1724688568398,0.8970115,63645.0,63644.0,0.005]
[1724688568604,1.512714,63645.0,63644.0,0.005]
[1724688568818,1.826957,63645.0,63644.0,0.005]
[1724688569156,1.96811355,63645.0,63644.0,0.005]
[1724688569360,2.12622278,63645.0,63644.0,0.002]
[1724688569604,0.42285,63644.0,63637.0,0.157141]
[1724688569802,0.07060937,63638.0,63637.0,0.157141]
[1724688569961,0.22678738,63638.0,63637.0,0.157141]
[1724688570361,0.23763925,63638.0,63637.0,0.157141]
[1724688571193,0.0873,63636.0,63635.0,0.00018911]
[1724688571394,0.5554037,63636.0,63635.0,0.00018911]
[1724688571593,0.24277801,63636.0,63635.0,0.00018911]
[1724688571824,0.25362988,63636.0,63635.0,0.00018911]
[1724688571968,0.25362988,63636.0,63635.0,0.78573]
[1724688571969,0.01085187,63636.0,63635.0,0.78573]
[1724688572170,0.01085187,63636.0,63635.0,1.10021111]
[1724688572373,0.07062102,63640.0,63639.0,0.00018911]
[1724688572664,0.15722102,63641.0,63640.0,0.157133]
[1724688572790,0.15722102,63641.0,63640.0,0.4714]
[1724688572986,0.15721867,63641.0,63640.0,0.4714]
[1724688573197,0.15721635,63641.0,63640.0,0.4714]
[1724688573644,0.20256136,63642.0,63641.0,0.471393]
[1724688573645,0.15547586,63642.0,63641.0,0.471393]
[1724688573849,0.1084,63642.0,63641.0,0.471393]
[1724688574290,0.1084,63642.0,63641.0,0.47158211]
[1724688574878,0.04707586,63643.0,63642.0,0.157128]
[1724688575084,0.15617801,63643.0,63642.0,0.47157411]
[1724688575484,0.20325387,63643.0,63642.0,0.47157411]
[1724688576123,0.20325387,63643.0,63642.0,0.471385]
[1724688576326,0.20325387,63643.0,63642.0,0.47157411]
[1724688576568,0.04707586,63643.0,63642.0,1.215999]
[1724688576769,0.04707586,63644.0,63643.0,0.47156711]
[1724688576979,0.04707586,63644.0,63643.0,0.78581911]
[1724688577695,0.04707586,63644.0,63643.0,0.78563]
[1724688577905,0.04707586,63644.0,63643.0,0.78581911]
[1724688578146,0.04907586,63644.0,63643.0,0.78581911]
[1724688578354,0.05991445,63644.0,63643.0,0.78581911]
[1724688579512,0.05991445,63644.0,63643.0,1.21017111]
[1724688579715,0.002,63644.0,63643.0,1.21017111]
[1724688579919,0.002,63644.0,63643.0,1.10007111]
[1724688580124,0.01280775,63644.0,63643.0,1.10007111]
[1724688580328,0.01280775,63644.0,63643.0,0.78581911]
[1724688580329,0.002,63644.0,63643.0,0.78581911]
[1724688580728,0.002,63644.0,63643.0,0.78563]
[1724688582114,0.04907586,63644.0,63643.0,0.78563]
[1724688582355,0.002,63644.0,63643.0,1.099882]
[1724688583705,0.002,63644.0,63643.0,0.78563]
[1724688586168,0.04907586,63644.0,63643.0,0.78563]
[1724688586340,0.04907586,63644.0,63643.0,0.78581911]
[1724688586559,0.04907586,63644.0,63643.0,0.78563]
[1724688586950,0.002,63644.0,63643.0,0.78563]
[1724688587154,0.04907586,63644.0,63643.0,0.78581911]
[1724688587356,0.04907586,63644.0,63643.0,0.78563]
[1724688587586,0.04907586,63644.0,63643.0,0.89493]
[1724688588012,0.05990941,63644.0,63643.0,0.89493]
[1724688588634,0.04907586,63644.0,63643.0,0.89493]
[1724688589659,0.05990941,63644.0,63643.0,0.89493]
[1724688590071,0.01283355,63644.0,63643.0,1.397382]
[1724688590464,0.002,63644.0,63643.0,1.711634]
[1724688590676,0.002,63644.0,63643.0,1.397382]
[1724688590883,0.0006172,63645.0,63644.0,1.099868]
[1724688591105,0.0006172,63645.0,63644.0,1.47381891]
[1724688592070,0.0006172,63645.0,63644.0,1.48281891]
[1724688593158,0.0006172,63645.0,63644.0,1.99456691]
[1724688593634,0.0006172,63645.0,63644.0,2.00356691]
[1724688595674,0.0006172,63645.0,63644.0,1.729616]
[1724688598001,0.00042809,63645.0,63644.0,1.729616]
[1724688600708,0.00042809,63645.0,63644.0,2.47399292]
[1724688601484,0.00042809,63645.0,63644.0,2.46499292]
[1724688603910,0.00042809,63645.0,63644.0,2.46999292]
[1724688604344,0.00042809,63645.0,63644.0,2.47099292]
[1724688604968,0.00042809,63645.0,63644.0,2.48499292]
[1724688605410,0.00042809,63645.0,63644.0,2.47099292]
[1724688605610,0.00042809,63645.0,63644.0,2.45699292]
[1724688605816,0.00042809,63645.0,63644.0,2.48499292]
[1724688606555,0.00042809,63645.0,63644.0,2.47477232]
[1724688607122,0.00042809,63645.0,63644.0,2.78902032]
[1724688607334,0.00042809,63645.0,63644.0,2.81202032]
[1724688612555,0.00042809,63645.0,63644.0,2.79802032]
[1724688613636,0.00042809,63645.0,63644.0,2.78402032]
[1724688614047,0.00042809,63645.0,63644.0,2.79802032]
[1724688614222,9e-08,63645.0,63644.0,2.84009565]
[1724688614430,0.00907501,63655.0,63654.0,1.925689]
[1724688614655,0.00907501,63655.0,63654.0,2.45581792]
[1724688615699,0.00907501,63655.0,63654.0,2.46781792]
[1724688616682,0.00907501,63655.0,63654.0,2.47981792]
[1724688617680,0.00907501,63655.0,63654.0,2.80847944]
[1724688617879,0.1116,63676.0,63667.0,0.157067]
[1724688618171,0.46876099,63683.0,63667.0,1.82449792]
[1724688618367,0.55836099,63683.0,63667.0,2.45276592]
[1724688618951,0.55836099,63683.0,63667.0,2.79089992]
[1724688619923,0.46876099,63683.0,63667.0,2.79089992]
[1724688620752,0.46876099,63683.0,63667.0,2.80489992]
[1724688620922,0.46876099,63683.0,63667.0,2.81889992]
[1724688621136,0.46876099,63683.0,63667.0,2.80489992]
[1724688621540,0.46876099,63683.0,63667.0,2.81889992]
[1724688621765,0.1181,63680.0,63667.0,2.81889992]
[1724688622454,0.46876099,63683.0,63667.0,2.82742114]
[1724688622664,0.57736099,63683.0,63667.0,2.81342114]
[1724688623316,0.57736099,63683.0,63667.0,2.79942114]
[1724688623730,0.57736099,63683.0,63667.0,2.81342114]
[1724688624143,0.46876099,63683.0,63667.0,2.82742114]
[1724688624632,0.09827501,63684.0,63673.0,2.00252291]
[1724688624633,0.00907501,63684.0,63673.0,2.00252291]
[1724688625061,0.46876099,63682.0,63673.0,2.45590092]
[1724688625337,0.00907501,63684.0,63673.0,2.45590092]
[1724688625567,0.00907501,63684.0,63673.0,2.79300492]
[1724688626094,0.00907501,63684.0,63673.0,2.80700492]
[1724688626342,0.00907501,63684.0,63678.0,1.72844]
[1724688626593,0.00907501,63684.0,63678.0,2.21321801]
[1724688626898,0.00907501,63684.0,63678.0,2.19021801]
[1724688628383,0.00907501,63684.0,63678.0,2.21821801]
[1724688628619,0.00907501,63684.0,63678.0,2.12701801]
[1724688629128,0.00907501,63684.0,63678.0,2.13534568]
[1724688630188,0.0013064,63679.0,63678.0,2.13534568]
[1724688630399,0.0013064,63679.0,63678.0,1.70586568]
[1724688632374,0.0013064,63679.0,63678.0,1.81736568]
[1724688632579,0.0013064,63679.0,63678.0,1.90426568]
[1724688632780,0.0013064,63679.0,63678.0,2.21834568]
[1724688633637,0.0013064,63679.0,63678.0,2.21934568]
[1724688634672,0.0013064,63679.0,63678.0,1.87726568]
[1724688634859,0.0013064,63679.0,63678.0,2.19134568]
[1724688635070,0.0013064,63679.0,63678.0,2.21934568]
[1724688636152,0.0013064,63679.0,63678.0,2.24234568]
[1724688637187,0.0013064,63679.0,63678.0,2.21434568]
[1724688637544,0.0013064,63679.0,63678.0,2.04394568]
[1724688638147,0.0013064,63679.0,63678.0,1.54968767]
[1724688638970,0.0013064,63679.0,63678.0,1.82166568]
[1724688639159,0.0013064,63679.0,63678.0,1.91646568]
[1724688639481,0.0013064,63679.0,63678.0,2.2442453]
[1724688639686,4e-07,63679.0,63678.0,2.2672453]
[1724688639884,4e-07,63679.0,63678.0,2.5673253]
[1724688640485,4e-07,63679.0,63678.0,2.2532453]
[1724688640707,4e-07,63679.0,63678.0,2.2672453]
[1724688640939,4e-07,63679.0,63678.0,2.2532453]
[1724688641332,4e-07,63679.0,63678.0,2.2392453]
[1724688641533,4e-07,63679.0,63678.0,2.2532453]
[1724688641908,4e-07,63679.0,63678.0,2.2672453]
[1724688643003,4e-07,63679.0,63678.0,2.25354568]
[1724688643682,4e-07,63679.0,63678.0,2.2672453]
[1724688646639,4e-07,63679.0,63678.0,2.5813253]
[1724688646889,0.00907501,63696.0,63695.0,0.470994]
[1724688647170,0.00907501,63696.0,63695.0,1.94311092]
[1724688647463,0.01796754,63696.0,63695.0,1.94311092]
[1724688647690,0.00907501,63696.0,63695.0,1.78693291]
[1724688647934,0.20987501,63696.0,63695.0,1.512982]
[1724688648411,0.20987501,63696.0,63695.0,1.524982]
[1724688648669,0.20987501,63696.0,63695.0,1.538982]
[1724688649639,0.20987501,63696.0,63695.0,1.526982]
[1724688649874,0.20987501,63696.0,63695.0,1.540982]
[1724688650386,0.00907501,63696.0,63695.0,1.81493291]
[1724688651081,0.00907501,63696.0,63695.0,2.11492891]
[1724688651350,0.00907501,63696.0,63695.0,2.10092891]
[1724688651572,0.00907501,63696.0,63695.0,2.13748779]
[1724688652415,0.00907501,63696.0,63695.0,2.12348779]
[1724688652852,0.00907501,63696.0,63695.0,2.10948779]
[1724688653063,0.00907501,63696.0,63695.0,2.12348779]
[1724688653719,0.00907501,63696.0,63695.0,2.13748779]
[1724688654362,0.00907501,63696.0,63695.0,2.14545097]
[1724688654989,0.00907501,63696.0,63695.0,2.41052898]
[1724688655225,0.00907501,63696.0,63695.0,2.52292898]
[1724688656081,0.00891801,63696.0,63695.0,2.52292898]
[1724688656283,0.00891801,63696.0,63695.0,2.03767807]
[1724688656489,0.00891801,63696.0,63695.0,2.31162898]
[1724688656909,0.00891801,63696.0,63695.0,2.32562898]
[1724688657111,0.00891801,63696.0,63695.0,2.31162898]
[1724688657318,0.00891801,63696.0,63695.0,2.41402898]
[1724688657532,0.00891801,63696.0,63695.0,2.38602898]
[1724688657796,0.0126786,63701.0,63698.0,2.150776]
[1724688657998,0.0126786,63701.0,63698.0,2.42995401]
[1724688658200,0.0126786,63701.0,63698.0,2.43791719]
[1724688659067,0.0126786,63701.0,63698.0,2.45191719]
[1724688659673,0.0126786,63701.0,63698.0,2.46591719]
[1724688662154,0.0887,63699.0,63698.0,2.01903619]
[1724688662998,0.0004,63699.0,63698.0,2.01903619]
[1724688664425,0.0004,63699.0,63698.0,2.02003619]
[1724688664863,0.0004,63699.0,63698.0,2.25133619]
[1724688665704,0.0004,63699.0,63698.0,2.56531719]
[1724688665905,0.0126786,63701.0,63700.0,1.83554]
[1724688666128,0.0126786,63701.0,63700.0,2.42868901]
[1724688666255,0.0126786,63701.0,63700.0,2.43705365]
[1724688666481,0.00906401,63709.0,63708.0,1.727626]
[1724688666684,0.00906401,63709.0,63708.0,2.28075492]
[1724688667506,0.00906401,63709.0,63708.0,2.28911956]
[1724688667869,0.00906401,63709.0,63708.0,2.39015492]
[1724688668271,0.00906401,63709.0,63708.0,2.28075492]
[1724688668481,0.00906401,63709.0,63708.0,2.29475492]
[1724688668892,0.00906401,63709.0,63708.0,2.28075492]
[1724688669099,0.00906401,63709.0,63708.0,2.28911956]
[1724688669309,0.00906401,63709.0,63708.0,2.30311956]
[1724688670344,0.00906401,63709.0,63708.0,2.31166882]
[1724688670560,0.00906401,63709.0,63708.0,2.61160082]
[1724688671020,0.00906401,63709.0,63708.0,2.63960082]
[1724688673721,0.0883,63723.0,63711.0,0.001]
[1724688673920,0.0883,63723.0,63718.0,1.412473]
[1724688674141,0.0883,63723.0,63718.0,1.512473]
[1724688674343,0.12056401,63719.0,63718.0,1.512473]
[1724688674721,0.20886401,63719.0,63718.0,1.512473]
[1724688675143,0.20886401,63719.0,63718.0,1.526473]
[1724688677359,0.00946401,63719.0,63718.0,1.69107107]
[1724688677574,0.00946401,63719.0,63718.0,2.01895407]
[1724688677772,0.00946401,63719.0,63718.0,2.15991227]
[1724688678365,0.00946401,63719.0,63718.0,2.13191227]
[1724688679457,0.00946401,63719.0,63718.0,2.14591227]
[1724688679774,0.00946401,63719.0,63718.0,2.15991227]
[1724688679974,0.00946401,63719.0,63718.0,2.47379527]
[1724688680188,0.05,63733.0,63730.0,1.412203]
[1724688680189,0.0905,63731.0,63730.0,1.412203]
[1724688680415,0.0905,63731.0,63730.0,1.94233192]
[1724688681264,0.0905,63731.0,63730.0,1.95133192]
[1724688681682,0.0905,63731.0,63730.0,1.96533192]
[1724688682914,0.0905,63731.0,63730.0,1.95633192]
[1724688683139,0.0905,63731.0,63730.0,1.97033192]
[1724688684011,0.0905,63731.0,63730.0,1.81415391]
[1724688687501,0.05,63733.0,63732.0,1.412163]
[1724688687900,0.05,63733.0,63732.0,1.512163]
[1724688688921,0.05,63733.0,63732.0,1.525163]
[1724688689721,0.05,63733.0,63732.0,1.539163]
[1724688690292,0.05,63733.0,63732.0,1.526163]
[1724688690683,0.050825,63733.0,63732.0,1.540163]
[1724688695483,0.050825,63733.0,63732.0,1.69634101]
[1724688695747,0.050825,63733.0,63732.0,1.99615501]
[1724688696140,0.050825,63733.0,63732.0,1.98215501]
[1724688696351,0.050825,63733.0,63732.0,1.99615501]
[1724688696564,0.050825,63733.0,63732.0,2.01015501]
[1724688696767,0.050825,63733.0,63732.0,1.98215501]
[1724688696973,0.050825,63733.0,63732.0,1.99615501]
[1724688697175,0.050825,63733.0,63732.0,2.01015501]
[1724688698012,0.050825,63733.0,63732.0,1.540163]
[1724688698223,0.161125,63733.0,63732.0,1.540163]
[1724688698435,0.161125,63733.0,63732.0,1.512163]
[1724688698641,0.050825,63733.0,63732.0,1.68234101]
[1724688699364,0.050825,63733.0,63732.0,1.69634101]
[1724688702177,0.050825,63733.0,63732.0,1.80533225]
[1724688707313,0.050825,63733.0,63732.0,2.11914625]
[1724688708395,0.050825,63733.0,63732.0,2.10514625]
[1724688708895,0.050825,63733.0,63732.0,2.11914625]
[1724688709636,0.050825,63733.0,63732.0,2.25974625]
[1724688711706,0.050825,63733.0,63732.0,2.23174625]
[1724688711939,0.050825,63733.0,63732.0,2.24574625]
[1724688712179,0.050825,63733.0,63732.0,2.14314625]
[1724688712421,0.050825,63733.0,63732.0,2.14214625]
[1724688712668,0.050825,63733.0,63732.0,2.11914625]
[1724688712901,0.050825,63733.0,63732.0,2.12014625]